fUSD/lending_fUSD_20240719
["ID","MTS","AMOUNT","RATE_DAILY","PERIOD"]
[332662978,1721411451039,-1123.54,0.00034383,14]
[332662979,1721411451049,-2002.14,0.00034383,14]
[332662980,1721411451059,-734.79,0.00034383,14]
[332662981,1721411451068,-525.59,0.00034383,14]
[332662982,1721411451078,-500.0,0.00034383,14]
[332662983,1721411451087,-709.12,0.00034383,14]
[332662984,1721411451096,-500.0,0.00034383,14]
[332662985,1721411451106,-500.0,0.00034383,14]
[332662986,1721411451115,-500.0,0.00034383,14]
[332662987,1721411451126,-505.11963422,0.00034383,14]
[332662988,1721411451139,-1118.74,0.00034383,14]
[332662989,1721411451148,-1718.26,0.00034383,14]
[332662990,1721411451158,-853.38,0.00034383,14]
[332662991,1721411451168,-1130.69,0.00034383,14]
[332662992,1721411451178,-500.0,0.00034383,14]
[332662993,1721411451187,-500.0,0.00034383,14]
[332662994,1721411451196,-955.27,0.00034383,14]
[332662995,1721411451206,-647.66,0.00034383,14]
[332662996,1721411451218,-500.0,0.00034383,14]
[332662997,1721411451228,-1107.57,0.00034383,14]
[332662998,1721411451238,-500.0,0.00034383,14]
[332662999,1721411451248,-500.0,0.00034383,14]
[332663000,1721411451258,-546.29,0.00034383,14]
[332663001,1721411451267,-274.15757958,0.00034383,14]
[332663002,1721411451620,-225.84242042,0.00034383,14]
[332663003,1721411451629,-500.0,0.00034383,14]
[332663004,1721411451640,-500.0,0.00034383,14]
[332663005,1721411451650,-500.0,0.00034383,14]
[332663006,1721411451660,-500.0,0.00034383,14]
[332663007,1721411451670,-500.0,0.00034383,14]
[332663008,1721411451681,-500.0,0.00034383,14]
[332663009,1721411451692,-593.12,0.00034383,14]
[332663010,1721411451702,-500.0,0.00034383,14]
[332663011,1721411451713,-500.0,0.00034383,14]
[332663012,1721411451723,-500.0,0.00034383,14]
[332663013,1721411451732,-1267.66,0.00034383,14]
[332663014,1721411451743,-1004.15,0.00034383,14]
[332663015,1721411451754,-500.0,0.00034383,14]
[332663016,1721411451763,-500.0,0.00034383,14]
[332663017,1721411451772,-500.0,0.00034383,14]
[332663018,1721411451783,-500.0,0.00034383,14]
[332663019,1721411451793,-524.96,0.00034383,14]
[332663020,1721411451803,-492.48364539,0.00034383,14]
[332663021,1721411451812,-672.0,0.00034383,14]
[332663022,1721411451822,-500.0,0.00034383,14]
[332663023,1721411451832,-1604.34,0.00034383,14]
[332663024,1721411451841,-500.0,0.00034383,14]
[332663025,1721411451850,-2684.0,0.00034383,14]
[332663026,1721411451860,-1411.78,0.00034383,14]
[332663027,1721411451869,-500.0,0.00034383,14]
[332663028,1721411451879,-858.0,0.00034383,14]
[332663029,1721411451890,-1259.18,0.00034383,14]
[332663030,1721411451900,-500.0,0.00034383,14]
[332663031,1721411451910,-500.0,0.00034383,14]
[332663032,1721411451919,-500.0,0.00034383,14]
[332663033,1721411451928,-928.26,0.00034383,14]
[332663034,1721411451938,-781.23,0.00034383,14]
[332663035,1721411451948,-860.86,0.00034383,14]
[332663036,1721411451958,-756.27,0.00034383,14]
[332663037,1721411451967,-579.58,0.00034383,14]
[332663038,1721411451977,-840.95,0.00034383,14]
[332663039,1721411451987,-3829.75,0.00034383,14]
[332663040,1721411451996,-500.0,0.00034383,14]
[332663041,1721411452005,-992.53,0.00034383,14]
[332663042,1721411452015,-512.29,0.00034383,14]
[332663043,1721411452024,-500.0,0.00034383,14]
[332663044,1721411452033,-500.0,0.00034383,14]
[332663045,1721411452043,-1687.45,0.00034383,14]
[332663046,1721411452053,-554.18,0.00034383,14]
[332663047,1721411452062,-2139.51,0.00034383,14]
[332663048,1721411452072,-3678.46,0.00034383,14]
[332663049,1721411452082,-1957.81,0.00034383,14]
[332663050,1721411452092,-1102.24,0.00034383,14]
[332663051,1721411452102,-507.85846662,0.00034383,14]
[332663052,1721411452112,-500.0,0.00034383,14]
[332663053,1721411452123,-500.0,0.00034383,14]
[332663054,1721411452134,-2659.19,0.00034383,14]
[332663055,1721411452149,-500.0,0.00034383,14]
[332663056,1721411452158,-500.0,0.00034383,14]
[332663057,1721411452169,-748.36,0.00034383,14]
[332663058,1721411452178,-500.0,0.00034383,14]
[332663059,1721411452189,-500.0,0.00034383,14]
[332663060,1721411452199,-1342.76,0.00034383,14]
[332663061,1721411452209,-500.0,0.00034383,14]
[332663062,1721411452221,-1446.86,0.00034383,14]
[332663063,1721411452232,-2318.73,0.00034383,14]
[332663064,1721411452242,-323.08822128,0.00034383,14]
[332663065,1721411452252,-500.0,0.00034383,14]
[332663066,1721411452261,-500.0,0.00034383,14]
[332663067,1721411452271,-968.02,0.00034383,14]
[332663068,1721411452280,-500.0,0.00034383,14]
[332663069,1721411452290,-500.0,0.00034383,14]
[332663070,1721411452299,-500.0,0.00034383,14]
[332663071,1721411452310,-1215.42,0.00034383,14]
[332663072,1721411452319,-2711.43,0.00034383,14]
[332663073,1721411452329,-1189.06,0.00034383,14]
[332663074,1721411452339,-500.0,0.00034383,14]
[332663075,1721411452349,-500.0,0.00034383,14]
[332663076,1721411452359,-717.63,0.00034383,14]
[332663077,1721411452370,-591.06,0.00034383,14]
[332663078,1721411452382,-952.61,0.00034383,14]
[332663079,1721411452391,-2016.29,0.00034383,14]
[332663080,1721411452400,-500.0,0.00034383,14]
[332663081,1721411452410,-500.0,0.00034383,14]
[332663082,1721411452420,-837.41,0.00034383,14]
[332663083,1721411452430,-500.0,0.00034383,14]
[332663084,1721411452441,-517.97,0.00034383,14]
[332663085,1721411452451,-1315.92,0.00034383,14]
[332663086,1721411452460,-1189.37,0.00034383,14]
[332663087,1721411452470,-787.01,0.00034383,14]
[332663088,1721411452479,-853.41,0.00034383,14]
[332663089,1721411452489,-500.0,0.00034383,14]
[332663090,1721411452499,-618.57,0.00034383,14]
[332663091,1721411452509,-922.88,0.00034383,14]
[332663092,1721411452519,-1426.93,0.00034383,14]
[332663093,1721411452530,-500.0,0.00034383,14]
[332663094,1721411452539,-2121.44,0.00034383,14]
[332663095,1721411452618,-1492.61,0.00034383,14]
[332663096,1721411452628,-2060.02,0.00034383,14]
[332663097,1721411452639,-500.0,0.00034383,14]
[332663098,1721411452648,-1270.35,0.00034383,14]
[332663099,1721411452658,-1782.26,0.00034383,14]
[332663100,1721411452667,-3015.1,0.00034383,14]
[332663101,1721411452679,-500.0,0.00034383,14]
[332663102,1721411452689,-1363.34,0.00034383,14]
[332663103,1721411452699,-942.62,0.00034383,14]
[332663104,1721411452708,-1188.43,0.00034383,14]
[332663105,1721411452718,-2312.04,0.00034383,14]
[332663106,1721411452727,-768.63,0.00034383,14]
[332663107,1721411452737,-569.91,0.00034383,14]
[332663108,1721411452746,-500.0,0.00034383,14]
[332663109,1721411452756,-500.0,0.00034383,14]
[332663110,1721411452765,-1535.53,0.00034383,14]
[332663111,1721411452774,-1425.08,0.00034383,14]
[332663112,1721411452784,-500.0,0.00034383,14]
[332663113,1721411452793,-785.93,0.00034383,14]
[332663114,1721411452803,-728.38,0.00034383,14]
[332663115,1721411452812,-3290.05,0.00034383,14]
[332663116,1721411452822,-829.12,0.00034383,14]
[332663117,1721411452832,-500.0,0.00034383,14]
[332663118,1721411452841,-500.0,0.00034383,14]
[332663119,1721411452850,-918.05,0.00034383,14]
[332663120,1721411452859,-1257.94,0.00034383,14]
[332663121,1721411452870,-2459.5,0.00034383,14]
[332663122,1721411452879,-500.0,0.00034383,14]
[332663123,1721411452890,-500.0,0.00034383,14]
[332663124,1721411452900,-500.0,0.00034383,14]
[332663125,1721411452910,-798.81,0.00034383,14]
[332663126,1721411452920,-742.79,0.00034383,14]
[332663127,1721411452930,-500.0,0.00034383,14]
[332663128,1721411452942,-500.0,0.00034383,14]
[332663129,1721411452952,-1058.6,0.00034383,14]
[332663130,1721411452963,-559.06,0.00034383,14]
[332663131,1721411452972,-983.06,0.00034383,14]
[332663132,1721411452982,-500.0,0.00034383,14]
[332663133,1721411452993,-1339.89,0.00034383,14]
[332663134,1721411453003,-532.01,0.00034383,14]
[332663135,1721411453012,-501.72,0.00034383,14]
[332663136,1721411453021,-984.21,0.00034383,14]
[332663137,1721411453031,-708.71,0.00034383,14]
[332663138,1721411453040,-4177.7,0.00034383,14]
[332663139,1721411453049,-1412.03,0.00034383,14]
[332663140,1721411453059,-1608.43,0.00034383,14]
[332663141,1721411453069,-620.3,0.00034383,14]
[332663142,1721411453078,-667.6,0.00034383,14]
[332663143,1721411453087,-541.83,0.00034383,14]
[332663144,1721411453096,-1153.89,0.00034383,14]
[332663145,1721411453105,-500.0,0.00034383,14]
[332663146,1721411453115,-4221.72,0.00034383,14]
[332663147,1721411453125,-500.0,0.00034383,14]
[332663148,1721411453137,-437.87571275,0.00034383,14]
[332663149,1721411453147,-990.52,0.00034383,14]
[332663150,1721411453156,-500.0,0.00034383,14]
[332663151,1721411453165,-2019.59,0.00034383,14]
[332663152,1721411453174,-1099.48,0.00034383,14]
[332663153,1721411453184,-500.0,0.00034383,14]
[332663154,1721411453193,-500.0,0.00034383,14]
[332663155,1721411453204,-1257.09,0.00034383,14]
[332663156,1721411453213,-547.27,0.00034383,14]
[332663157,1721411453222,-205.67236073,0.00034383,14]
[332663158,1721411453232,-2716.85,0.00034383,14]
[332663159,1721411453243,-1599.77,0.00034383,14]
[332663160,1721411453252,-500.0,0.00034383,14]
[332663161,1721411453261,-719.64,0.00034383,14]
[332663162,1721411453271,-857.73,0.00034383,14]
[332663163,1721411453280,-1986.48,0.00034383,14]
[332663164,1721411453289,-938.89,0.00034383,14]
[332663165,1721411453299,-1434.26,0.00034383,14]
[332663166,1721411453308,-700.01,0.00034383,14]
[332663167,1721411453317,-500.0,0.00034383,14]
[332663168,1721411453326,-500.0,0.00034383,14]
[332663169,1721411453336,-573.30944224,0.00034383,14]
[332663170,1721411453345,-500.0,0.00034383,14]
[332663171,1721411453355,-1795.89,0.00034383,14]
[332663172,1721411453363,-739.71,0.00034383,14]
[332663173,1721411453372,-500.0,0.00034383,14]
[332663174,1721411453383,-925.24,0.00034383,14]
[332663175,1721411453393,-500.0,0.00034383,14]
[332663176,1721411453403,-2641.15,0.00034383,14]
[332663177,1721411453413,-856.94,0.00034383,14]
[332663178,1721411453425,-690.03,0.00034383,14]
[332663179,1721411453434,-500.0,0.00034383,14]
[332663180,1721411453444,-1022.79,0.00034383,14]
[332663181,1721411453454,-1025.98,0.00034383,14]
[332663182,1721411453463,-712.85,0.00034383,14]
[332663183,1721411453473,-500.0,0.00034383,14]
[332663184,1721411453482,-644.42,0.00034383,14]
[332663185,1721411453494,-847.33,0.00034383,14]
[332663186,1721411453504,-2189.59,0.00034383,14]
[332663187,1721411453514,-500.0,0.00034383,14]
[332663188,1721411453523,-500.0,0.00034383,14]
[332663189,1721411453534,-748.24,0.00034383,14]
[332663190,1721411453544,-647.7336992,0.00034383,14]
[332663191,1721411453555,-2660.99,0.00034383,14]
[332663192,1721411453565,-500.0,0.00034383,14]
[332663193,1721411453575,-792.94,0.00034383,14]
[332663194,1721411453584,-1669.97,0.00034383,14]
[332663195,1721411453595,-500.0,0.00034383,14]
[332663196,1721411453606,-3200.91,0.00034383,14]
[332663197,1721411453617,-650.68,0.00034383,14]
[332663198,1721411453628,-576.05,0.00034383,14]
[332663199,1721411453641,-1188.46,0.00034383,14]
[332663200,1721411453650,-524.24,0.00034383,14]
[332663201,1721411453659,-2101.33,0.00034383,14]
[332663202,1721411453668,-500.0,0.00034383,14]
[332663203,1721411453677,-3620.33,0.00034383,14]
[332663204,1721411453686,-724.14,0.00034383,14]
[332663205,1721411453697,-500.0,0.00034383,14]
[332663206,1721411453707,-500.0,0.00034383,14]
[332663207,1721411453717,-1606.46,0.00034383,14]
[332663208,1721411453728,-2849.42,0.00034383,14]
[332663209,1721411453737,-735.51,0.00034383,14]
[332663210,1721411453747,-1136.35,0.00034383,14]
[332663211,1721411453755,-500.0,0.00034383,14]
[332663212,1721411453765,-2219.39,0.00034383,14]
[332663213,1721411453774,-3478.95,0.00034383,14]
[332663214,1721411453783,-1471.57,0.00034383,14]
[332663215,1721411453792,-500.0,0.00034383,14]
[332663216,1721411453801,-536.55,0.00034383,14]
[332663217,1721411453810,-619.21,0.00034383,14]
[332663218,1721411453819,-3703.31,0.00034383,14]
[332663219,1721411453828,-1121.26,0.00034383,14]
[332663220,1721411453838,-552.02,0.00034383,14]
[332663221,1721411453847,-508.98032529,0.00034383,14]
[332663222,1721411453856,-426.73781949,0.00034383,14]
[332663223,1721411453865,-1380.4,0.00034383,14]
[332663224,1721411453875,-1550.95,0.00034383,14]
[332663225,1721411453887,-500.0,0.00034383,14]
[332663226,1721411453896,-1560.94,0.00034383,14]
[332663227,1721411453905,-522.62,0.00034383,14]
[332663228,1721411453915,-1049.36,0.00034383,14]
[332663229,1721411453923,-533.79,0.00034383,14]
[332663230,1721411453933,-1990.65,0.00034383,14]
[332663231,1721411453942,-1730.51,0.00034383,14]
[332663232,1721411453951,-551.36,0.00034383,14]
[332663233,1721411453960,-1111.98,0.00034383,14]
[332663234,1721411453970,-4326.01,0.00034383,14]
[332663235,1721411453979,-588.86,0.00034383,14]
[332663236,1721411453988,-1572.72,0.00034383,14]
[332663237,1721411453998,-760.92,0.00034383,14]
[332663238,1721411454007,-1936.7,0.00034383,14]
[332663239,1721411454016,-500.0,0.00034383,14]
[332663240,1721411454026,-2053.54,0.00034383,14]
[332663241,1721411454035,-2486.51,0.00034383,14]
[332663242,1721411454045,-4288.83,0.00034383,14]
[332663243,1721411454056,-500.0,0.00034383,14]
[332663244,1721411454066,-996.04,0.00034383,14]
[332663245,1721411454075,-702.75,0.00034383,14]
[332663246,1721411454085,-632.59134982,0.00034383,14]
[332663247,1721411454096,-500.0,0.00034383,14]
[332663248,1721411454106,-500.0,0.00034383,14]
[332663249,1721411454116,-500.0,0.00034383,14]
[332663250,1721411454125,-1236.2,0.00034383,14]
[332663251,1721411454137,-1419.38,0.00034383,14]
[332663252,1721411454148,-2391.82,0.00034383,14]
[332663253,1721411454157,-500.0,0.00034383,14]
[332663254,1721411454169,-2723.49,0.00034383,14]
[332663255,1721411454178,-500.0,0.00034383,14]
[332663256,1721411454189,-1245.55,0.00034383,14]
[332663257,1721411454198,-500.0,0.00034383,14]
[332663258,1721411454208,-1708.14,0.00034383,14]
[332663259,1721411454219,-590.23881766,0.00034383,14]
[332663260,1721411454228,-2111.97,0.00034383,14]
[332663261,1721411454237,-2049.75,0.00034383,7]
[332663262,1721411454247,-500.0,0.00034383,14]
[332663263,1721411454256,-3150.3,0.00034383,14]
[332663264,1721411454265,-583.78,0.00034383,14]
[332663265,1721411454274,-1289.1,0.00034383,14]
[332663266,1721411454283,-913.26,0.00034383,14]
[332663267,1721411454292,-2072.22,0.00034383,14]
[332663268,1721411454301,-1118.18,0.00034383,14]
[332663269,1721411454310,-2467.95,0.00034383,14]
[332663270,1721411454319,-2287.86,0.00034383,14]
[332663271,1721411454328,-766.34,0.00034383,14]
[332663272,1721411454337,-500.0,0.00034383,14]
[332663273,1721411454347,-3489.46,0.00034383,14]
[332663274,1721411454362,-823.26,0.00034383,14]
[332663275,1721411454371,-1668.58,0.00034383,14]
[332663276,1721411454379,-500.0,0.00034383,14]
[332663277,1721411454390,-1578.39,0.00034383,14]
[332663278,1721411454398,-500.0,0.00034383,14]
[332663279,1721411454407,-500.0,0.00034383,14]
[332663280,1721411454418,-500.0,0.00034383,14]
[332663281,1721411454428,-541.63,0.00034383,14]
[332663282,1721411454437,-756.25,0.00034383,14]
[332663283,1721411454446,-500.0,0.00034383,14]
[332663284,1721411454455,-500.0,0.00034383,14]
[332663285,1721411454466,-1412.59,0.00034383,14]
[332663286,1721411454475,-1067.11,0.00034383,14]
[332663287,1721411454485,-2948.42,0.00034383,14]
[332663288,1721411454495,-784.93,0.00034383,14]
[332663289,1721411454506,-500.0,0.00034383,14]
[332663290,1721411454515,-640.01,0.00034383,14]
[332663291,1721411454525,-513.52,0.00034383,14]
[332663292,1721411454535,-1028.44,0.00034383,14]
[332663293,1721411454544,-2252.48,0.00034383,14]
[332663294,1721411454553,-500.0,0.00034383,14]
[332663295,1721411454562,-3712.8,0.00034383,14]
[332663296,1721411454570,-2021.9,0.00034383,14]
[332663297,1721411454579,-1403.26,0.00034383,14]
[332663298,1721411454588,-500.0,0.00034383,14]
[332663299,1721411454598,-674.78,0.00034383,14]
[332663300,1721411454607,-937.06,0.00034383,14]
[332663301,1721411454616,-2643.01,0.00034383,14]
[332663302,1721411454625,-1627.03,0.00034383,14]
[332663303,1721411454635,-2462.55,0.00034383,14]
[332663304,1721411454644,-500.0,0.00034383,14]
[332663305,1721411454654,-3287.52,0.00034383,14]
[332663306,1721411454665,-500.0,0.00034383,14]
[332663307,1721411454674,-1936.03,0.00034383,14]
[332663308,1721411454683,-2333.6,0.00034383,14]
[332663309,1721411454692,-1393.59,0.00034383,14]
[332663310,1721411454702,-1525.3,0.00034383,14]
[332663311,1721411454711,-500.0,0.00034383,14]
[332663312,1721411454720,-500.0,0.00034383,14]
[332663313,1721411454729,-573.94,0.00034383,14]
[332663314,1721411454738,-1371.28,0.00034383,14]
[332663315,1721411454748,-3469.57,0.00034383,14]
[332663316,1721411454758,-631.52,0.00034383,14]
[332663317,1721411454767,-588.43,0.00034383,14]
[332663318,1721411454776,-1955.31,0.00034383,14]
[332663319,1721411454785,-2176.17,0.00034383,14]
[332663320,1721411454794,-351.63322899,0.00034383,14]
[332663321,1721411454804,-2427.02,0.00034383,14]
[332663322,1721411454813,-500.0,0.00034383,14]
[332663323,1721411454822,-1828.59,0.00034383,14]
[332663324,1721411454831,-5486.25,0.00034383,14]
[332663325,1721411454840,-1223.8,0.00034383,14]
[332663326,1721411454852,-2146.48,0.00034383,14]
[332663327,1721411454861,-3526.03,0.00034383,14]
[332663328,1721411454871,-764.16,0.00034383,14]
[332663329,1721411454880,-4860.92,0.00034383,14]
[332663330,1721411454890,-500.0,0.00034383,14]
[332663331,1721411454899,-911.04,0.00034383,14]
[332663332,1721411454908,-500.0,0.00034383,14]
[332663333,1721411454918,-619.54281806,0.00034383,14]
[332663334,1721411454927,-1186.38,0.00034383,14]
[332663335,1721411454936,-803.43,0.00034383,14]
[332663336,1721411454949,-1434.17,0.00034383,14]
[332663337,1721411454959,-2377.08,0.00034383,14]
[332663338,1721411454968,-1324.17,0.00034383,14]
[332663339,1721411454978,-1063.45,0.00034383,14]
[332663340,1721411454989,-579.72,0.00034383,14]
[332663341,1721411454999,-997.28,0.00034383,14]
[332663342,1721411455008,-500.0,0.00034383,14]
[332663343,1721411455017,-1722.45,0.00034383,14]
[332663344,1721411455026,-1747.58,0.00034383,14]
[332663345,1721411455036,-2778.31,0.00034383,14]
[332663346,1721411455045,-764.08,0.00034383,14]
[332663347,1721411455054,-731.94,0.00034383,14]
[332663348,1721411455064,-2370.14,0.00034383,14]
[332663349,1721411455073,-2176.52,0.00034383,14]
[332663350,1721411455082,-746.56,0.00034383,14]
[332663351,1721411455091,-514.1697477,0.00034383,14]
[332663352,1721411455100,-843.15,0.00034383,14]
[332663353,1721411455109,-946.47,0.00034383,14]
[332663354,1721411455119,-2612.42,0.00034383,14]
[332663355,1721411455130,-3433.1,0.00034383,14]
[332663356,1721411455142,-3257.38,0.00034383,14]
[332663357,1721411455151,-4807.83,0.00034383,14]
[332663358,1721411455160,-776.7,0.00034383,14]
[332663359,1721411455171,-6084.24,0.00034383,14]
[332663360,1721411455181,-500.0,0.00034383,14]
[332663361,1721411455190,-3104.0,0.00034383,14]
[332663362,1721411455200,-929.51,0.00034383,14]
[332663363,1721411455210,-1119.11,0.00034383,14]
[332663364,1721411455220,-591.57,0.00034383,14]
[332663365,1721411455230,-773.81,0.00034383,14]
[332663366,1721411455239,-886.94,0.00034383,14]
[332663367,1721411455249,-500.0,0.00034383,14]
[332663368,1721411455258,-345.84539796,0.00034383,14]
[332663369,1721411455267,-834.14,0.00034383,14]
[332663370,1721411455276,-520.14,0.00034383,14]
[332663371,1721411455286,-3729.59,0.00034383,14]
[332663372,1721411455295,-500.0,0.00034383,14]
[332663373,1721411455304,-564.41,0.00034383,14]
[332663374,1721411455313,-2202.35,0.00034383,14]
[332663375,1721411455322,-535.52431315,0.00034383,14]
[332663376,1721411455332,-4444.81,0.00034383,14]
[332663377,1721411455342,-6544.05,0.00034383,14]
[332663378,1721411455351,-12975.5,0.00034383,14]
[332663379,1721411455360,-1479.28,0.00034383,14]
[332663380,1721411455369,-517.39,0.00034383,14]
[332663381,1721411455379,-500.0,0.00034383,14]
[332663382,1721411455389,-7598.05,0.00034383,14]
[332663383,1721411455398,-500.0,0.00034383,14]
[332663384,1721411455407,-1223.02,0.00034383,14]
[332663385,1721411455418,-2618.85,0.00034383,14]
[332663386,1721411455427,-500.0,0.00034383,14]
[332663387,1721411455436,-500.0,0.00034383,14]
[332663388,1721411455446,-2996.04776269,0.00034383,14]
[332663389,1721411455504,-1006.8,0.00034383,14]
[332663390,1721411455518,-255.95603174,0.00034383,14]
[332663391,1721411455530,-1485.67620557,0.00034383,14]
[332663392,1721411455541,-1017.25,0.00034383,14]
[332663393,1721411455551,-597.01,0.00034383,14]
[332663394,1721411455560,-846.56379443,0.00034383,14]
[332663395,1721411455574,-3582.65620557,0.00034383,14]
[332663396,1721411455584,-1155.3,0.00034383,14]
[332663397,1721411455595,-590.27,0.00034383,14]
[332663398,1721411455607,-783.69,0.00034383,14]
[332663399,1721411455618,-1153.78379443,0.00034383,14]
[332663400,1721411455630,-1302.47389257,0.00034383,14]
[332663401,1721411455642,-1014.502313,0.00034383,14]
[332663402,1721411455651,-500.0,0.00034383,14]
[332663403,1721411455660,-501.12,0.00034383,14]
[332663404,1721411455671,-500.0,0.00034383,14]
[332663405,1721411455681,-2671.8,0.00034383,14]
[332663406,1721411455691,-1458.44,0.00034383,14]
[332663407,1721411455702,-2242.37,0.00034383,14]
[332663408,1721411455712,-850.9,0.00034383,14]
[332663409,1721411455722,-3379.93,0.00034383,14]
[332663410,1721411455731,-782.77,0.00034383,14]
[332663411,1721411455742,-2276.75,0.00034383,14]
[332663412,1721411455752,-983.6,0.00034383,14]
[332663413,1721411455762,-2517.04,0.00034383,14]
[332663414,1721411455771,-7579.61,0.00034383,14]
[332663415,1721411455781,-1306.08,0.00034383,14]
[332663416,1721411455790,-528.52,0.00034383,14]
[332663417,1721411455799,-612.81,0.00034383,14]
[332663418,1721411455810,-2573.03,0.00034383,14]
[332663419,1721411455820,-1623.35,0.00034383,14]
[332663420,1721411455830,-662.31,0.00034383,14]
[332663421,1721411455840,-944.06,0.00034383,14]
[332663422,1721411455849,-3452.51064027,0.00034383,14]
[332663423,1721411455862,-706.27935973,0.00034383,14]
[332663424,1721411455872,-500.0,0.00034383,14]
[332663425,1721411455883,-823.61,0.00034383,14]
[332663426,1721411455892,-2052.86,0.00034383,14]
[332663427,1721411455901,-4173.55,0.00034383,14]
[332663428,1721411455911,-500.0,0.00034383,14]
[332663429,1721411455920,-2696.18386443,0.00034383,14]
[332663430,1721411455931,-563.34474092,0.00034383,14]
[332663431,1721411455942,-53.06139465,0.00034383,14]
[332663432,1721411455952,-500.0,0.00034383,14]
[332663433,1721411455963,-2591.99,0.00034383,14]
[332663434,1721411455972,-500.0,0.00034383,14]
[332663435,1721411455982,-1110.3,0.00034383,14]
[332663436,1721411455991,-1670.33,0.00034383,14]
[332663437,1721411456000,-3295.96,0.00034383,14]
[332663438,1721411456009,-3203.29,0.00034383,14]
[332663439,1721411456019,-11656.74379686,0.00034383,14]
[332663440,1721411456033,-520.35686499,0.00034383,14]
[332663441,1721411456046,-536.32933815,0.00034383,14]
[332663442,1721411456056,-183.62864944,0.00034383,14]
[332663443,1721411456070,-316.37135056,0.00034383,14]
[332663444,1721411456079,-1930.75665719,0.00034383,14]
[332663445,1721411456091,-5495.22065064,0.00034383,14]
[332663446,1721411456102,-1734.84626364,0.00034383,14]
[332663447,1721411456114,-762.04642853,0.00034383,14]
[332663448,1721411456124,-145.45357147,0.00034383,14]
[332663449,1721411456143,-2427.55502287,0.00034383,14]
[332663450,1721411456154,-1069.70961606,0.00034383,14]
[332663451,1721411456165,-8691.7817896,0.00034383,14]
[332663452,1721411456175,-1715.39,0.00034383,14]
[332663453,1721411456185,-1634.46,0.00034383,14]
[332663454,1721411456194,-1254.60916188,0.00034383,14]
[332663455,1721411456209,-964.14083812,0.00034383,14]
[332663456,1721411456218,-368.66880188,0.00034383,14]
[332663457,1721411456231,-310.75725806,0.00034383,14]
[332663458,1721411456243,-706.3125,0.00034383,14]
[332663459,1721411456255,-963.62144006,0.00034383,14]
[332663460,1721411456264,-579.83,0.00034383,14]
[332663461,1721411456273,-28938.05,0.00034383,14]
[332663462,1721411456282,-1842.31,0.00034383,14]
[332663463,1721411456292,-420.97593966,0.00034383,14]
[332663464,1721411456303,-2153.58406034,0.00034383,14]
[332663465,1721411456312,-6670.15,0.00034383,14]
[332663466,1721411456321,-195.22104405,0.00034383,14]
[332663467,1721411456330,-9010.61,0.00034383,14]
[332663468,1721411456340,-951.45,0.00034383,14]
[332663469,1721411456349,-1645.9,0.00034383,14]
[332663470,1721411456358,-1951.67,0.00034383,14]
[332663471,1721411456367,-500.0,0.00034383,14]
[332663472,1721411456376,-1689.61,0.00034383,14]
[332663473,1721411456387,-714.02,0.00034383,14]
[332663474,1721411456396,-7708.62,0.00034383,14]
[332663475,1721411456405,-5729.14,0.00034383,14]
[332663476,1721411456415,-1322.64,0.00034383,14]
[332663477,1721411456424,-1063.5,0.00034383,14]